bitfinex/quotes_SOLUSD_20250701
["timestamp","ask_amount","ask_price","bid_price","bid_amount"]
[1751400023769,0.0419,145.74,145.7,9.51420809]
[1751400023973,9.91530809,145.74,145.72,0.1]
[1751400025016,35.51420809,145.73,145.72,0.1]
[1751400025163,16.37621316,145.73,145.72,0.1]
[1751400025563,42.37621316,145.73,145.72,0.1]
[1751400026060,25.89042125,145.73,145.72,0.1]
[1751400026488,9.51420809,145.73,145.72,0.1]
[1751400026671,35.51420809,145.73,145.72,0.1]
[1751400027056,42.37621316,145.73,145.72,0.1]
[1751400028273,51.89042125,145.73,145.72,0.1]
[1751400028674,42.51837473,145.73,145.72,0.1]
[1751400029062,52.03258282,145.73,145.72,0.1]
[1751400031497,0.14216157,145.72,145.68,54.97121749]
[1751400031666,35.51420809,145.69,145.68,54.97121749]
[1751400033471,42.37809716,145.69,145.61,7.9]
[1751400033681,26.0,145.65,145.61,7.9]
[1751400033880,26.0,145.65,145.61,26.54964886]
[1751400034173,26.0,145.67,145.62,28.16385695]
[1751400034370,35.51420809,145.67,145.62,28.16385695]
[1751400034886,9.51420809,145.65,145.62,18.64964886]
[1751400035472,9.51420809,145.64,145.61,7.9]
[1751400035864,26.0,145.67,145.61,7.9]
[1751400036390,9.51420809,145.63,145.61,7.9]
[1751400036991,26.0,145.66,145.61,7.9]
[1751400037179,26.0,145.66,145.6,6.0173]
[1751400037381,26.0,145.66,145.6,15.53150809]
[1751400037382,26.0,145.65,145.6,15.53150809]
[1751400037595,35.51420809,145.65,145.6,15.53150809]
[1751400037796,9.51420809,145.64,145.6,15.53150809]
[1751400037978,26.0,145.65,145.6,6.0173]
[1751400038177,26.0,145.65,145.59,20.20054886]
[1751400038178,9.51420809,145.62,145.59,20.20054886]
[1751400038392,9.51420809,145.63,145.59,20.20054886]
[1751400038576,9.51420809,145.63,145.59,29.71475695]
[1751400039181,9.51420809,145.63,145.59,20.20054886]
[1751400039397,9.51420809,145.63,145.59,29.71475695]
[1751400040376,6.86581033,145.65,145.59,29.71475695]
[1751400040696,9.51420809,145.63,145.59,29.71475695]
[1751400041275,29.16,145.67,145.6,28.30601852]
[1751400041477,9.51420809,145.65,145.61,9.51420809]
[1751400042095,9.51420809,145.64,145.6,9.51420809]
[1751400042303,9.51420809,145.63,145.59,11.06510809]
[1751400042683,9.51420809,145.62,145.59,1.5509]
[1751400042874,9.51420809,145.63,145.59,11.06510809]
[1751400043279,9.51420809,145.62,145.59,1.5509]
[1751400043489,6.86530275,145.66,145.57,13.06257676]
[1751400043490,9.51420809,145.61,145.57,13.06257676]
[1751400043783,5.55801402,145.61,145.57,18.62059078]
[1751400044001,5.55801402,145.62,145.58,5.55801402]
[1751400044901,5.55801402,145.61,145.57,13.06257676]
[1751400045092,5.55801402,145.6,145.57,13.06257676]
[1751400045906,31.55801402,145.6,145.57,6.56237676]
[1751400046085,26.0,145.6,145.57,6.56237676]
[1751400046286,5.55801402,145.58,145.57,6.56237676]
[1751400047306,31.55801402,145.58,145.57,6.56237676]
[1751400047893,32.86907542,145.58,145.57,6.56237676]
[1751400048092,35.53918507,145.58,145.57,6.56237676]
[1751400048405,42.40826049,145.58,145.57,6.56237676]
[1751400048598,16.40826049,145.58,145.57,6.56237676]
[1751400049106,35.53918507,145.58,145.57,6.56237676]
[1751400049410,26.0,145.58,145.57,6.56237676]
[1751400049610,35.53918507,145.58,145.57,6.56237676]
[1751400050414,42.40826049,145.58,145.57,6.56237676]
[1751400050802,16.55042206,145.58,145.57,6.56237676]
[1751400051116,26.0,145.57,145.48,200.0]
[1751400051321,9.53918507,145.51,145.48,200.0]
[1751400051521,29.2,145.56,145.48,209.53918507]
[1751400051522,9.53918507,145.52,145.48,209.53918507]
[1751400052196,36.07035392,145.56,145.48,209.53918507]
[1751400052395,9.53918507,145.52,145.48,209.53918507]
[1751400052634,36.07035392,145.56,145.48,209.53918507]
[1751400052803,9.53918507,145.52,145.48,209.53918507]
[1751400053012,9.53918507,145.53,145.48,200.0]
[1751400053310,26.0,145.53,145.48,200.0]
[1751400053496,9.53918507,145.49,145.48,200.0]
[1751400053697,26.0,145.53,145.48,200.0]
[1751400053923,9.53918507,145.5,145.48,200.0]
[1751400054093,26.0,145.53,145.48,200.0]
[1751400054502,35.53918507,145.53,145.49,9.53918507]
[1751400054709,31.2582,145.56,145.49,9.53918507]
[1751400055002,9.53918507,145.54,145.5,18.64964886]
[1751400055207,9.53918507,145.53,145.5,18.64964886]
[1751400055407,9.53918507,145.54,145.5,28.18883393]
[1751400055605,6.86918755,145.58,145.5,18.64964886]
[1751400055819,26.0,145.55,145.5,18.64964886]
[1751400056022,9.53918507,145.54,145.5,18.64964886]
[1751400056405,26.0,145.55,145.5,18.64964886]
[1751400056605,9.53918507,145.54,145.5,18.64964886]
[1751400056804,26.0,145.55,145.5,18.64964886]
[1751400057110,26.0,145.54,145.48,200.0]
[1751400057407,29.74,145.55,145.48,200.0]
[1751400057616,26.0,145.55,145.48,200.0]
[1751400058002,26.0,145.55,145.49,9.53918507]
[1751400058218,3.51657827,145.58,145.49,18.64964886]
[1751400058522,26.0,145.54,145.48,200.0]
[1751400059114,3.52429155,145.58,145.49,18.64964886]
[1751400059321,26.0,145.56,145.49,18.64964886]
[1751400059529,32.86917378,145.58,145.48,226.0]
[1751400059828,32.86917378,145.58,145.48,235.53918507]
[1751400060203,9.53918507,145.51,145.48,226.0]
[1751400060410,9.53918507,145.5,145.48,200.0]
[1751400060625,6.87058323,145.55,145.48,200.0]
[1751400060927,32.87058323,145.55,145.48,200.0]
[1751400061138,9.53918507,145.49,145.48,200.0]
[1751400061427,32.87058323,145.55,145.48,200.0]
[1751400061726,9.53918507,145.5,145.48,200.0]
[1751400062805,9.53918507,145.53,145.48,209.53918507]
[1751400063197,26.0,145.56,145.48,200.0]
[1751400063402,9.53918507,145.52,145.48,200.0]
[1751400063634,26.0,145.54,145.48,200.0]
[1751400063835,9.53918507,145.52,145.48,200.0]
[1751400064326,26.0,145.54,145.48,209.53918507]
[1751400064511,9.53918507,145.52,145.48,209.53918507]
[1751400064907,9.53918507,145.52,145.48,200.0]
[1751400065231,9.53918507,145.52,145.48,209.53918507]
[1751400065731,9.53918507,145.52,145.48,200.0]
[1751400065944,32.87069426,145.55,145.48,200.0]
[1751400066415,9.53918507,145.5,145.48,200.0]
[1751400069032,11.09048507,145.53,145.48,200.0]
[1751400069230,35.53918507,145.49,145.48,200.0]
[1751400069530,9.53918507,145.49,145.48,200.0]
[1751400069903,31.71158167,145.49,145.48,200.0]
[1751400070730,31.5694201,145.49,145.48,200.0]
[1751400071129,26.0,145.49,145.48,200.0]
[1751400071347,31.5694201,145.49,145.48,200.0]
[1751400071630,31.71158167,145.49,145.48,200.0]
[1751400071832,31.5694201,145.49,145.48,200.0]
[1751400072037,26.0,145.49,145.48,200.0]
[1751400072334,42.42180681,145.49,145.48,200.0]
[1751400072537,35.54848219,145.49,145.48,200.0]
[1751400072740,42.42180681,145.49,145.48,200.0]
[1751400073037,26.0,145.49,145.48,200.0]
[1751400073240,0.3592,145.5,145.48,200.0]
[1751400073444,9.54848219,145.49,145.48,200.0]
[1751400073903,0.3592,145.5,145.48,200.0]
[1751400074108,9.54848219,145.49,145.48,200.0]
[1751400075229,0.3592,145.5,145.48,200.0]
[1751400075230,26.3592,145.5,145.48,200.0]
[1751400075608,9.54848219,145.49,145.48,200.0]
[1751400077618,16.42180681,145.49,145.48,200.0]
[1751400079133,16.42180681,145.49,145.47,0.1]
[1751400079134,18.64964886,145.48,145.47,0.1]
[1751400079470,18.64964886,145.48,145.28,200.0]
[1751400079471,6.68446157,145.41,145.28,200.0]
[1751400079736,19.09696438,145.29,145.28,200.0]
[1751400079948,19.09696438,145.29,145.28,79.998888]
[1751400079949,51.43696438,145.29,145.28,79.998888]
[1751400080117,51.43696438,145.29,145.15,1.4580535]
[1751400080118,26.0,145.27,145.15,1.4580535]
[1751400080315,35.54848219,145.26,145.15,1.4580535]
[1751400080514,26.0,145.26,145.15,1.4580535]
[1751400080726,9.54848219,145.23,145.15,1.4580535]
[1751400080930,0.14216157,145.25,145.15,1.4580535]
[1751400081108,0.14216157,145.28,145.15,11.4980535]
[1751400081319,9.548482,145.31,145.2,26.0]
[1751400081530,0.14216157,145.31,145.24,26.0]
[1751400081837,13.13655724,145.32,145.24,10.04]
[1751400082149,3.58807505,145.32,145.16,7.7872]
[1751400082443,26.0,145.31,145.16,7.7872]
[1751400082644,26.72480523,145.31,145.16,33.7872]
[1751400082943,26.0,145.29,145.17,9.54848219]
[1751400083115,26.0,145.29,145.15,1.4580535]
[1751400083116,9.54848219,145.25,145.15,1.4580535]
[1751400083316,0.72480523,145.28,145.17,9.54848219]
[1751400083510,0.72480523,145.28,145.22,9.54848219]
[1751400083835,0.72480523,145.28,145.16,26.0]
[1751400084141,0.0419,145.28,145.23,9.54848219]
[1751400084546,9.59038219,145.28,145.23,9.54848219]
[1751400084741,9.59038219,145.28,145.15,11.5180535]
[1751400084742,0.72480523,145.27,145.15,1.4580535]
[1751400084931,9.54848219,145.21,145.16,19.60848219]
[1751400085122,0.72480523,145.23,145.18,9.54848219]
[1751400085317,0.72480523,145.23,145.17,9.54848219]
[1751400085318,9.54848219,145.22,145.17,9.54848219]
[1751400085652,9.54848219,145.2,145.16,10.06]
[1751400085815,32.88543638,145.24,145.17,9.54848219]
[1751400085816,0.72480523,145.23,145.17,9.54848219]
[1751400086013,9.54848219,145.2,145.16,10.06]
[1751400086235,0.72480523,145.23,145.16,10.06]
[1751400086449,0.72480523,145.25,145.16,10.06]
[1751400086650,9.54848219,145.2,145.16,10.06]
[1751400086947,0.72480523,145.25,145.17,9.54848219]
[1751400087249,0.72480523,145.25,145.16,19.60848219]
[1751400087452,9.54848219,145.2,145.16,10.06]
[1751400087656,0.72480523,145.25,145.17,9.54848219]
[1751400087820,9.54848219,145.23,145.18,9.54848219]
[1751400088446,7.60861923,145.27,145.16,10.06]
[1751400088447,9.54848219,145.19,145.16,10.06]
[1751400088617,9.54848219,145.18,145.16,10.06]
[1751400088928,9.54848219,145.17,145.16,10.06]
[1751400089248,0.72480523,145.25,145.16,10.06]
[1751400089249,9.54848219,145.18,145.16,10.06]
[1751400090224,0.72480523,145.21,145.16,10.06]
[1751400090427,9.90768219,145.18,145.16,10.06]
[1751400090721,0.3592,145.18,145.16,10.06]
[1751400091548,0.3592,145.18,145.17,9.54848219]
[1751400091758,0.0419,145.28,145.24,9.54848219]
[1751400091963,0.0419,145.28,145.27,9.54848219]
[1751400092326,0.0419,145.28,145.27,28.48245419]
[1751400092552,0.72480523,145.39,145.29,18.933972]
[1751400092760,0.72480523,145.43,145.36,9.54848219]
[1751400092948,9.54848219,145.42,145.37,9.54848219]
[1751400093247,4.91695,145.48,145.3,0.14216157]
[1751400093248,9.54848219,145.38,145.3,0.14216157]
[1751400093453,9.54848219,145.37,145.33,10.06]
[1751400093758,9.54848219,145.37,145.33,19.60848219]
[1751400093942,0.72480523,145.41,145.33,19.60848219]
[1751400094138,9.54848219,145.37,145.28,6.5862]
[1751400094342,9.54848219,145.33,145.28,6.5862]
[1751400094540,9.54848219,145.33,145.28,16.13468219]
[1751400095232,9.54848219,145.33,145.28,6.5862]
[1751400095545,9.54848219,145.33,145.28,16.13468219]
[1751400096131,9.54848219,145.33,145.29,9.54848219]
[1751400096775,9.54848219,145.33,145.28,6.5862]
[1751400096776,9.54848219,145.3,145.28,6.5862]
[1751400096938,35.54848219,145.35,145.24,10.06]
[1751400096939,9.54848219,145.29,145.24,10.06]
[1751400097254,26.0,145.34,145.26,9.54848219]
[1751400097255,9.54848219,145.3,145.26,9.54848219]
[1751400097566,9.54848219,145.29,145.27,5.03772893]
[1751400097750,9.54848219,145.29,145.25,28.19813105]
[1751400097946,9.54848219,145.3,145.26,5.03804595]
[1751400098251,9.54848219,145.29,145.27,5.03804595]
[1751400098442,9.54848219,145.29,145.25,18.64964886]
[1751400098641,9.54848219,145.27,145.26,5.03870356]
[1751400098844,9.54848219,145.28,145.24,10.06]
[1751400099064,0.72480523,145.31,145.28,0.1]
[1751400099240,26.72480523,145.31,145.28,0.1]
[1751400099444,9.54848219,145.29,145.28,0.1]
[1751400099761,9.54848219,145.29,145.24,10.06]
[1751400100060,9.54848219,145.26,145.22,25.31114886]
[1751400100265,26.72480523,145.31,145.22,25.31114886]
[1751400100266,9.54848219,145.25,145.22,25.31114886]
[1751400100463,9.54848219,145.23,145.16,6.3029]
[1751400100761,26.0,145.23,145.16,16.3629]
[1751400100937,9.54848219,145.17,145.16,6.3029]
[1751400101359,9.54848219,145.18,145.16,6.3029]
[1751400103264,0.72480523,145.25,145.17,9.54848219]
[1751400103560,9.54848219,145.22,145.18,9.54848219]
[1751400104343,26.0,145.27,145.18,9.54848219]
[1751400104540,0.72480523,145.28,145.21,9.54848219]
[1751400104773,9.54848219,145.26,145.22,9.54848219]
[1751400104954,7.60627506,145.32,145.22,9.54848219]
[1751400105142,7.60627506,145.32,145.2,9.54848219]
[1751400105357,7.60627506,145.32,145.17,28.19813105]
[1751400105358,9.54848219,145.21,145.17,28.19813105]
[1751400105555,9.54848219,145.26,145.17,28.19813105]
[1751400105556,9.54848219,145.22,145.17,28.19813105]
[1751400105770,9.54848219,145.22,145.18,9.54848219]
[1751400105942,0.72480523,145.27,145.17,18.64964886]
[1751400106142,9.54848219,145.22,145.18,9.54848219]
[1751400106340,9.54848219,145.23,145.18,9.54848219]
[1751400106570,0.72480523,145.27,145.18,9.54848219]
[1751400106758,9.54848219,145.23,145.19,10.06]
[1751400107162,9.54848219,145.22,145.18,19.60848219]
[1751400107357,9.54848219,145.22,145.16,6.3029]
[1751400107661,9.54848219,145.23,145.18,9.54848219]
[1751400107860,9.54848219,145.23,145.19,9.54848219]
[1751400108449,0.72480523,145.27,145.2,9.54848219]
[1751400108646,9.54848219,145.25,145.21,9.54848219]
[1751400109067,9.54848219,145.24,145.2,9.54848219]
[1751400109469,9.54848219,145.23,145.19,9.54848219]
[1751400109867,9.54848219,145.23,145.18,0.42648471]
[1751400110057,9.54848219,145.24,145.19,9.54848219]
[1751400110765,9.54848219,145.23,145.18,0.42648471]
[1751400110959,9.54848219,145.23,145.19,9.54848219]
[1751400111261,9.54848219,145.25,145.2,9.54848219]
[1751400111659,9.54848219,145.26,145.21,9.54848219]
[1751400112383,0.72480523,145.32,145.18,19.07613357]
[1751400112384,9.54848219,145.27,145.22,9.54848219]
[1751400112687,9.54848219,145.26,145.21,9.54848219]
[1751400114261,9.54848219,145.25,145.21,9.54848219]
[1751400115783,9.54848219,145.26,145.22,9.54848219]
[1751400116379,26.0,145.3,145.22,9.54848219]
[1751400116573,9.54848219,145.26,145.22,9.54848219]
[1751400117580,9.54848219,145.26,145.21,9.64848219]
[1751400117778,9.54848219,145.26,145.21,18.74964886]
[1751400117981,9.54848219,145.25,145.21,0.1]
[1751400118361,9.54848219,145.24,145.21,0.1]
[1751400120182,0.72480523,145.27,145.21,0.1]
[1751400120367,9.54848219,145.24,145.21,0.1]
[1751400120979,9.54848219,145.22,145.21,0.1]
[1751400121176,9.54848219,145.24,145.21,0.1]
[1751400121389,26.0,145.27,145.21,0.1]
[1751400121598,9.54848219,145.25,145.21,0.1]
[1751400122089,26.72480523,145.28,145.21,0.1]
[1751400122259,26.72480523,145.28,145.21,9.64848219]
[1751400122574,9.54848219,145.26,145.21,9.64848219]
[1751400123077,26.0,145.27,145.21,0.1]
[1751400123078,9.54848219,145.24,145.21,0.1]
[1751400123290,9.54848219,145.22,145.21,0.1]
[1751400125367,0.72480523,145.23,145.21,0.1]
[1751400125692,26.0,145.22,145.21,0.1]
[1751400125865,0.72480523,145.28,145.22,18.933972]
[1751400126061,0.72480523,145.33,145.27,9.54848219]
[1751400126269,0.2,145.34,145.3,9.54848219]
[1751400126561,0.2,145.34,145.31,9.54848219]
[1751400126761,0.2,145.34,145.32,9.54848219]
[1751400127071,9.54848219,145.33,145.27,18.64964886]
[1751400127284,9.54848219,145.32,145.28,9.54848219]
[1751400127793,0.2,145.34,145.28,13.74738586]
[1751400128172,13.74738586,145.29,145.26,9.74]
[1751400128488,13.74738586,145.27,145.26,9.74]
[1751400128797,13.74738586,145.28,145.26,9.74]
[1751400129087,26.0,145.3,145.26,9.74]
[1751400129088,13.74738586,145.27,145.26,9.74]
[1751400129287,26.0,145.3,145.26,9.74]
[1751400129583,26.0,145.3,145.25,6.1356]
[1751400129584,13.74738586,145.28,145.25,6.1356]
[1751400130669,0.72480523,145.31,145.25,6.1356]
[1751400131065,13.74738586,145.29,145.25,19.88298586]
[1751400131261,26.0,145.29,145.25,19.88298586]
[1751400131691,13.74738586,145.3,145.25,19.88298586]
[1751400131886,26.0,145.31,145.25,6.1356]
[1751400132079,0.92480523,145.34,145.26,13.74738586]
[1751400132385,13.74738586,145.3,145.25,19.88298586]
[1751400132576,13.74738586,145.3,145.26,13.74738586]
[1751400132778,0.92480523,145.34,145.26,13.74738586]
[1751400132974,0.2,145.3,145.26,13.74738586]
[1751400133289,0.2,145.3,145.27,14.031709]
[1751400133674,0.2,145.3,145.27,18.933972]
[1751400135176,13.94738586,145.3,145.27,18.933972]
[1751400135378,13.74738586,145.29,145.26,0.42648471]
[1751400135593,13.94738586,145.3,145.26,0.42648471]
[1751400135906,0.2,145.3,145.29,32.82351943]
[1751400136275,0.2,145.3,145.29,19.07613357]
[1751400136693,0.2,145.3,145.29,32.82351943]
[1751400137467,0.2,145.3,145.26,19.07613357]
[1751400137666,0.2,145.3,145.26,32.82351943]
[1751400137869,0.2,145.3,145.28,18.933972]
[1751400138489,13.94738586,145.3,145.27,18.933972]
[1751400138703,13.74738586,145.28,145.25,6.1356]
[1751400138906,13.74738586,145.28,145.26,18.79181043]
[1751400139380,0.2,145.3,145.26,18.79181043]
[1751400139381,13.74738586,145.29,145.26,18.79181043]
[1751400140072,0.2,145.3,145.28,13.74738586]
[1751400140294,0.2,145.3,145.27,14.17387057]
[1751400140598,0.2,145.3,145.26,18.64964886]
[1751400140790,13.74738586,145.27,145.24,9.38]
[1751400140994,14.67219109,145.3,145.24,9.38]
[1751400140995,13.74738586,145.25,145.24,9.38]
[1751400141605,14.67219109,145.3,145.24,9.38]
[1751400141606,0.2,145.3,145.24,9.38]
[1751400141909,13.74738586,145.28,145.24,9.38]
[1751400142093,13.74738586,145.26,145.24,9.38]
[1751400143314,13.74738586,145.25,145.24,9.38]
[1751400143487,13.74738586,145.26,145.24,9.38]
[1751400143901,13.74738586,145.27,145.24,9.38]
[1751400144495,0.2,145.3,145.24,9.38]
[1751400144496,13.74738586,145.28,145.24,9.38]
[1751400144732,0.2,145.3,145.28,0.28432314]
[1751400145014,0.2,145.3,145.29,39.12721943]
[1751400145733,0.2,145.3,145.29,6.3037]
[1751400145886,13.94738586,145.3,145.26,0.42648471]
[1751400146083,0.2,145.3,145.27,32.39703472]
[1751400146299,0.2,145.3,145.28,0.28432314]
[1751400147510,0.2,145.3,145.28,14.031709]
[1751400148401,0.2,145.3,145.29,14.17387057]
[1751400149808,0.2,145.34,145.29,14.17387057]
[1751400150119,0.2,145.34,145.33,39.40471943]
[1751400150314,0.2,145.34,145.33,40.0928086]
[1751400152115,0.2,145.45,145.35,18.64964886]
[1751400152293,13.94738586,145.45,145.41,18.64964886]
[1751400152488,13.74738586,145.44,145.41,18.64964886]
[1751400152692,13.74738586,145.44,145.41,0.28432314]
[1751400152888,0.2,145.45,145.41,14.17387057]
[1751400153093,13.94738586,145.45,145.42,18.64964886]
[1751400153601,13.94738586,145.45,145.41,0.42648471]
[1751400154207,0.2,145.45,145.39,0.42648471]
[1751400154409,13.74738586,145.4,145.37,18.64964886]
[1751400154612,13.74738586,145.4,145.38,0.14216157]
[1751400154801,13.74738586,145.4,145.38,0.28432314]
[1751400155000,13.74738586,145.41,145.38,0.14216157]
[1751400155192,0.2,145.45,145.39,13.74738586]
[1751400155397,13.74738586,145.44,145.4,32.68135786]
[1751400156624,13.74738586,145.42,145.38,0.14216157]
[1751400156821,13.74738586,145.41,145.38,0.42648471]
[1751400157023,13.74738586,145.4,145.38,0.28432314]
[1751400157197,13.74738586,145.4,145.37,18.64964886]
[1751400157398,13.74738586,145.38,145.34,18.64964886]
[1751400157610,13.74738586,145.37,145.36,9.38]
[1751400157799,13.74738586,145.4,145.3,1.6737]
[1751400158004,13.74738586,145.4,145.32,9.38]
[1751400158005,13.74738586,145.33,145.32,9.38]
[1751400159534,32.8776343,145.4,145.32,9.38]
[1751400159698,26.0,145.4,145.32,9.38]
[1751400159894,26.0,145.38,145.32,9.38]
[1751400160099,13.74738586,145.35,145.32,9.38]
[1751400161812,26.0,145.38,145.32,9.38]
[1751400162124,13.74738586,145.4,145.33,18.933972]
[1751400162125,13.74738586,145.37,145.33,18.933972]
[1751400163934,13.74738586,145.4,145.37,0.28432314]
[1751400164236,0.92480523,145.45,145.37,14.031709]
[1751400164403,13.74738586,145.41,145.37,14.031709]
[1751400164606,13.74738586,145.41,145.37,0.28432314]
[1751400165106,13.74738586,145.41,145.38,18.64964886]
[1751400165832,0.2,145.45,145.39,32.68135786]
[1751400166040,0.2,145.45,145.41,18.933972]
[1751400166041,13.94738586,145.45,145.41,18.933972]
[1751400166407,0.2,145.45,145.41,18.933972]
[1751400166624,13.74738586,145.44,145.41,18.933972]
[1751400169100,13.74738586,145.42,145.39,27.64964886]
[1751400169300,13.74738586,145.4,145.39,27.64964886]
[1751400169531,13.74738586,145.4,145.39,27.933972]
[1751400169727,13.74738586,145.41,145.39,27.933972]
[1751400169917,9.55385592,145.41,145.39,27.933972]
[1751400171031,9.55385592,145.4,145.39,27.933972]
[1751400171327,9.55385592,145.41,145.39,27.933972]
[1751400171832,0.2,145.44,145.39,27.933972]
[1751400172025,0.2,145.44,145.4,0.28432314]
[1751400172227,13.72867359,145.43,145.4,0.28432314]
[1751400172931,0.2,145.44,145.4,0.28432314]
[1751400173437,13.92867359,145.44,145.4,0.28432314]
[1751400173831,13.72867359,145.41,145.39,9.0]
[1751400174015,0.2,145.44,145.39,9.0]
[1751400174328,13.72867359,145.4,145.36,0.1]
[1751400174520,13.72867359,145.37,145.36,0.1]
[1751400175027,14.45347882,145.37,145.36,0.1]
[1751400176227,21.33247723,145.37,145.36,0.1]
[1751400177032,14.45347882,145.37,145.36,0.1]
[1751400177216,21.33247723,145.37,145.36,0.1]
[1751400180229,26.0,145.34,145.3,0.1]
[1751400180442,13.72867359,145.31,145.3,0.1]
[1751400180811,26.0,145.34,145.3,0.1]
[1751400181342,13.72867359,145.31,145.3,0.1]
[1751400183335,26.0,145.37,145.3,0.1]
[1751400183842,13.72867359,145.32,145.3,0.1]
[1751400184342,13.72867359,145.31,145.3,0.1]
[1751400184537,13.72867359,145.32,145.3,0.1]
[1751400185238,0.72480523,145.39,145.3,0.1]
[1751400185446,0.72480523,145.39,145.31,18.933972]
[1751400185447,13.72867359,145.34,145.31,18.933972]
[1751400185810,26.0,145.38,145.31,18.933972]
[1751400186016,0.72480523,145.39,145.31,18.933972]
[1751400186017,13.72867359,145.34,145.31,18.933972]
[1751400186750,13.72867359,145.33,145.31,18.933972]
[1751400186944,13.72867359,145.33,145.26,8.1304]
[1751400186945,28.18215241,145.32,145.25,0.1]
[1751400187118,13.72867359,145.26,145.25,0.1]
[1751400187746,0.72480523,145.29,145.25,0.1]
[1751400187915,13.72867359,145.26,145.25,0.1]
[1751400188113,26.0,145.23,145.15,1.4580535]
[1751400188342,0.72480523,145.22,145.15,1.4580535]
[1751400188513,13.72867359,145.18,145.15,1.4580535]
[1751400188718,13.72867359,145.16,145.15,1.4580535]
[1751400188928,26.0,145.22,145.15,20.10770236]
[1751400188929,26.72480523,145.22,145.15,20.10770236]
[1751400189131,13.72867359,145.17,145.15,20.10770236]
[1751400189342,0.72480523,145.25,145.16,32.52048402]
[1751400189512,31.84205458,145.3,145.2,13.72867359]
[1751400189513,13.72867359,145.24,145.2,13.72867359]
[1751400189827,13.72867359,145.29,145.24,0.14216157]
[1751400190030,13.72867359,145.29,145.24,13.87083516]
[1751400190232,13.72867359,145.28,145.24,0.14216157]
[1751400190458,13.72867359,145.28,145.24,13.87083516]
[1751400190614,13.72867359,145.3,145.26,13.87083516]
[1751400190819,13.72867359,145.27,145.25,0.28432314]
[1751400191020,13.72867359,145.27,145.24,18.64964886]
[1751400191431,13.72867359,145.28,145.24,32.37832245]
[1751400191748,13.72867359,145.29,145.25,14.01299673]
[1751400192856,13.72867359,145.31,145.27,18.933972]
[1751400193236,13.72867359,145.31,145.27,32.66264559]
[1751400193641,26.0,145.34,145.27,32.66264559]
[1751400193854,9.56650668,145.31,145.27,28.50047868]
[1751400194553,9.56650668,145.33,145.29,28.50047868]
[1751400194770,26.0,145.35,145.29,18.933972]
[1751400195054,9.56650668,145.32,145.29,18.933972]
[1751400196440,26.0,145.34,145.29,18.933972]
[1751400196652,9.56650668,145.32,145.29,18.933972]
[1751400197679,9.56650668,145.32,145.26,0.14216157]
[1751400197834,9.56650668,145.31,145.26,0.14216157]
[1751400198042,9.56650668,145.27,145.23,28.21615554]
[1751400198440,9.56650668,145.27,145.23,18.64964886]
[1751400198747,9.56650668,145.27,145.23,28.21615554]
[1751400198979,9.56650668,145.27,145.23,18.64964886]
[1751400199155,9.56650668,145.25,145.23,18.64964886]
[1751400199334,9.56650668,145.24,145.23,18.64964886]
[1751400199532,9.56650668,145.26,145.23,18.64964886]
[1751400200061,9.56650668,145.26,145.22,15.4759]
[1751400200062,9.56650668,145.24,145.22,15.4759]
[1751400200237,9.56650668,145.23,145.22,15.4759]
[1751400200549,32.88249272,145.3,145.22,15.4759]
[1751400200730,0.72480523,145.29,145.22,15.4759]
[1751400200933,9.56650668,145.23,145.22,15.4759]
[1751400201433,9.56650668,145.23,145.22,9.02]
[1751400202055,9.56650668,145.23,145.19,18.64964886]
[1751400202259,9.56650668,145.21,145.19,18.64964886]
[1751400202559,9.56650668,145.21,145.18,6.3348]
[1751400202730,9.56650668,145.22,145.18,15.90130668]
[1751400202933,9.56650668,145.22,145.19,0.14216157]
[1751400203452,9.56650668,145.21,145.19,0.28432314]
[1751400204348,26.0,145.24,145.19,0.28432314]
[1751400204538,9.56650668,145.22,145.19,0.28432314]
[1751400204731,0.72480523,145.27,145.21,18.933972]
[1751400205049,0.72480523,145.27,145.23,28.50047868]
[1751400205050,9.56650668,145.27,145.23,28.50047868]
[1751400205260,9.56650668,145.27,145.23,18.933972]
[1751400205432,9.56650668,145.26,145.23,18.933972]
[1751400206235,9.56650668,145.24,145.2,0.28432314]
[1751400206440,9.56650668,145.22,145.2,0.28432314]